bitfinex-derivatives/quotes_SOLF0:USTF0_20240918
["timestamp","ask_amount","ask_price","bid_price","bid_amount"]
[1726626520863,1.4102,131.27,131.24,9.37]
[1726626521964,1.4102,131.27,131.25,3.8084]
[1726626524155,1.4006,131.28,131.26,3.8082]
[1726626524758,1.4006,131.28,131.27,3.8079]
[1726626525069,9.37,131.3,131.27,3.8079]
[1726626525475,9.37,131.3,131.26,3.8081]
[1726626525769,13.1771,131.3,131.26,3.8081]
[1726626527573,9.37,131.29,131.26,3.8081]
[1726626528573,13.1774,131.29,131.25,3.8084]
[1726626528769,9.37,131.27,131.22,13.1817564]
[1726626529271,9.37,131.27,131.24,3.8086]
[1726626529475,9.37,131.27,131.22,9.37]
[1726626530768,13.178,131.27,131.24,3.8088]
[1726626531866,3.808,131.27,131.24,3.8088]
[1726626532068,13.178,131.27,131.24,3.8088]
[1726626533069,9.37,131.28,131.25,3.8085]
[1726626533275,9.37,131.29,131.25,13.1785]
[1726626533962,9.37,131.29,131.26,3.808]
[1726626536974,3.8072,131.3,131.26,3.808]
[1726626537173,13.1772,131.3,131.26,3.808]
[1726626540383,13.1774,131.29,131.25,3.8084]
[1726626540878,9.37,131.29,131.25,3.8084]
[1726626541077,1.468,131.31,131.24,3.8087]
[1726626541078,9.37,131.27,131.24,3.8087]
[1726626544085,13.178,131.27,131.24,3.8087]
[1726626545979,9.37,131.27,131.23,9.37]
[1726626547084,13.1781,131.27,131.24,3.8086]
[1726626547289,9.37,131.27,131.24,3.8086]
[1726626552291,13.1779,131.27,131.24,3.8086]
[1726626552890,9.37,131.27,131.24,3.8086]
[1726626557384,13.1775,131.29,131.25,3.8085]
[1726626557584,3.8075,131.29,131.25,9.37]
[1726626558384,13.1775,131.29,131.25,3.8084]
[1726626559895,3.8077,131.28,131.25,3.8084]
[1726626560096,9.37,131.27,131.24,3.8087]
[1726626562499,9.37,131.27,131.25,3.8085]
[1726626564302,9.37,131.27,131.24,3.8087]
[1726626567900,13.1777,131.28,131.25,3.8085]
[1726626569195,9.37,131.28,131.25,3.8085]
[1726626570195,13.1774,131.29,131.25,3.8085]
[1726626571292,3.8073,131.3,131.26,3.808]
[1726626571596,13.1773,131.3,131.26,3.808]
[1726626578225,9.37,131.28,131.23,9.37]
[1726626578817,13.1778,131.28,131.24,3.8086]
[1726626581121,13.1778,131.28,131.24,13.1786]
[1726626582826,13.1778,131.28,131.24,3.8086]
[1726626583021,13.1778,131.28,131.24,13.1786]
[1726626588021,3.8078,131.28,131.24,13.1786]
[1726626589625,13.1776,131.29,131.25,13.1784]
[1726626589924,3.8076,131.29,131.25,9.37]
[1726626590124,9.37,131.3,131.26,3.8081]
[1726626590125,13.1772,131.3,131.26,3.8081]
[1726626593929,9.37,131.29,131.25,3.8084]
[1726626594830,3.8077,131.28,131.25,3.8084]
[1726626595824,13.1775,131.29,131.25,3.8084]
[1726626596431,13.1775,131.29,131.25,13.1784]
[1726626603936,3.8075,131.29,131.25,13.1784]
[1726626604138,13.1775,131.29,131.25,13.1784]
[1726626606931,13.1772,131.3,131.26,3.8081]
[1726626607139,13.1772,131.3,131.26,9.37]
[1726626607939,13.1772,131.3,131.26,13.1781]
[1726626608243,5.2749,131.31,131.26,9.37]
[1726626608439,14.6449,131.31,131.26,9.37]
[1726626608640,14.6449,131.31,131.27,3.8078]
[1726626611146,3.8071,131.3,131.26,13.1781]
[1726626611343,10.838,131.31,131.22,3.72057595]
[1726626611344,9.37,131.28,131.22,3.72057595]
[1726626611539,9.37,131.28,131.23,9.37]
[1726626611738,9.37,131.28,131.25,3.8085]
[1726626611739,13.1777,131.28,131.25,3.8085]
[1726626612449,9.37,131.28,131.25,3.8085]
[1726626615251,13.1775,131.29,131.25,3.8085]
[1726626618352,13.1775,131.29,131.23,3.79907233]
[1726626618353,1.468,131.31,131.27,9.37]
[1726626618944,5.2749,131.31,131.27,13.1777]
[1726626619347,5.2749,131.31,131.27,3.8077]
[1726626619554,14.6449,131.31,131.26,3.8081]
[1726626619747,3.8072,131.3,131.26,3.8081]
[1726626619947,3.8072,131.3,131.18,150.92872249]
[1726626620247,3.8072,131.3,131.25,13.1783]
[1726626620648,3.8072,131.3,131.25,9.37]
[1726626621856,3.8072,131.3,131.26,3.8082]
[1726626622442,9.37,131.29,131.26,3.8082]
[1726626629352,9.37,131.28,131.18,154.68244983]
[1726626629558,9.37,131.25,131.19,6.51128284]
[1726626629857,3.8093,131.23,131.19,3.8102]
[1726626630057,9.37,131.22,131.19,3.8102]
[1726626630257,9.37,131.2,131.18,150.64342249]
[1726626630557,13.18,131.2,131.16,3.8109]
[1726626630759,9.37,131.2,131.15,9.37]
[1726626630958,9.37,131.2,131.17,3.8108]
[1726626631146,9.37,131.2,131.15,9.37]
[1726626631855,3.8101,131.2,131.16,13.181]
[1726626632051,9.37,131.21,131.16,9.37]
[1726626632754,1.4421,131.22,131.16,9.37]
[1726626632954,10.8121,131.22,131.18,9.37]
[1726626633751,10.8121,131.22,131.18,13.1805]
[1726626635954,14.6215,131.22,131.18,13.1805]
[1726626636149,10.8121,131.22,131.18,13.1805]
[1726626636756,10.8121,131.22,131.19,3.8102]
[1726626637156,9.37,131.22,131.19,3.8102]
[1726626637558,9.37,131.22,131.18,13.1804]
[1726626637758,13.1795,131.22,131.18,13.1804]
[1726626637960,9.37,131.2,131.16,9.37]
[1726626638261,9.37,131.2,131.16,13.1809]
[1726626639460,9.37,131.19,131.16,3.8109]
[1726626639661,9.37,131.18,131.15,3.8113]
[1726626640165,9.37,131.18,131.14,3.8117]
[1726626640563,9.37,131.18,131.13,9.37]
[1726626640754,10.8093,131.18,131.13,9.37]
[1726626640960,3.811,131.17,131.13,13.1818]
[1726626641364,10.8093,131.18,131.13,13.1818]
[1726626642063,14.62,131.18,131.13,13.1818]
[1726626643166,14.62,131.18,131.14,3.8117]
[1726626646772,1.4393,131.18,131.15,3.8113]
[1726626647966,10.8093,131.18,131.15,3.8113]
[1726626649270,10.8093,131.18,131.16,3.8111]
[1726626650571,1.4393,131.18,131.16,9.37]
[1726626650774,1.3849,131.19,131.16,9.37]
[1726626651477,1.3849,131.19,131.17,3.8108]
[1726626660378,10.7549,131.19,131.17,3.8108]
[1726626660582,9.37,131.18,131.16,3.8111]
[1726626660880,9.37,131.17,131.13,9.37]
[1726626661381,9.37,131.17,131.15,3.8112]
[1726626664182,9.37,131.18,131.15,3.8112]
[1726626664385,9.37,131.18,131.14,9.37]
[1726626664386,1.3849,131.19,131.16,3.8111]
[1726626664599,1.3849,131.19,131.15,9.37]
[1726626664786,9.37,131.18,131.13,13.09150743]
[1726626664984,9.37,131.16,131.14,3.8115]
[1726626665288,9.37,131.16,131.12,9.37]
[1726626665783,9.37,131.16,131.13,3.8118]
[1726626666991,9.37,131.17,131.14,3.8117]
[1726626670183,1.3849,131.19,131.15,3.8112]
[1726626670389,10.7549,131.19,131.15,3.8112]
[1726626670982,9.37,131.18,131.15,3.8112]
[1726626672497,9.37,131.18,131.14,9.37]
[1726626672789,9.37,131.18,131.13,9.37]
[1726626673590,9.37,131.18,131.14,3.8115]
[1726626674088,9.37,131.15,131.11,13.23175419]
[1726626674591,9.37,131.15,131.13,3.8119]
[1726626677690,1.5178,131.17,131.13,9.37]
[1726626678193,5.3288,131.17,131.14,3.8115]
[1726626678490,14.6988,131.17,131.14,3.8115]
[1726626678891,1.5178,131.17,131.15,3.8113]
[1726626680794,1.5178,131.17,131.14,9.37]
[1726626681390,1.3849,131.19,131.17,3.8108]
[1726626685286,9.37,131.18,131.14,9.37]
[1726626685792,9.37,131.18,131.15,3.8113]
[1726626687891,10.7549,131.19,131.16,3.8111]
[1726626688093,1.3849,131.19,131.15,9.37]
[1726626688497,1.3849,131.19,131.16,3.8111]
[1726626689202,1.3849,131.19,131.17,3.8108]
[1726626689498,1.3849,131.19,131.17,9.37]
[1726626689697,1.3849,131.19,131.17,13.1807]
[1726626690893,1.4136,131.21,131.17,9.37]
[1726626691093,10.8866,131.22,131.17,9.37]
[1726626691596,1.5166,131.22,131.19,9.37]
[1726626691898,15.24,131.26,131.21,9.37]
[1726626692088,15.24,131.26,131.23,13.1789]
[1726626692396,15.24,131.26,131.23,9.37]
[1726626692600,15.24,131.26,131.24,3.8088]
[1726626693099,15.24,131.26,131.25,3.8085]
[1726626693296,1.4377,131.28,131.25,13.1785]
[1726626693492,9.37,131.3,131.25,13.1785]
[1726626693697,3.8065,131.32,131.28,9.37]
[1726626693906,9.37,131.32,131.28,9.37]
[1726626694195,9.37,131.31,131.26,13.1781]
[1726626694399,9.37,131.3,131.26,3.8081]
[1726626697003,9.37,131.29,131.25,3.8084]
[1726626699005,13.1774,131.29,131.25,3.8084]
[1726626699604,9.37,131.29,131.26,3.808]
[1726626699798,13.1772,131.3,131.26,3.808]
[1726626702508,9.37,131.29,131.26,3.808]
[1726626703204,13.1774,131.29,131.26,3.808]
[1726626705804,9.37,131.31,131.27,9.37]
[1726626706512,3.8066,131.32,131.28,9.37]
[1726626706709,13.1766,131.32,131.28,9.37]
[1726626707204,9.37,131.32,131.29,3.8073]
[1726626707709,9.37,131.32,131.3,3.807]
[1726626708308,4.3762,131.33,131.28,9.37]
[1726626708908,8.1824,131.33,131.29,3.8071]
[1726626710212,4.3762,131.33,131.3,3.807]
[1726626710406,9.37,131.35,131.31,9.37]
[1726626710808,13.1758,131.35,131.31,9.37]
[1726626713219,13.1758,131.35,131.31,13.1768]
[1726626713408,3.8058,131.35,131.32,9.37]
[1726626714717,2.8186,131.37,131.34,9.32936268]
[1726626715014,9.37,131.39,131.36,3.8053]
[1726626715207,1.4118,131.41,131.37,9.37]
[1726626715208,10.7818,131.41,131.37,9.37]
[1726626715420,9.37,131.4,131.36,9.37]
[1726626715609,3.8045,131.39,131.35,9.37]
[1726626716317,13.1743,131.4,131.35,13.1756]
[1726626718421,13.1743,131.4,131.36,13.1752]
[1726626718615,3.8043,131.4,131.36,13.1752]
[1726626719923,13.1745,131.39,131.35,3.8055]
[1726626720414,9.37,131.39,131.36,9.37]
[1726626721217,9.37,131.39,131.36,13.1753]
[1726626722020,13.1745,131.39,131.36,13.1753]
[1726626722219,9.37,131.4,131.36,13.1753]
[1726626722723,13.1743,131.4,131.36,13.1753]
[1726626724710,5.2158,131.41,131.38,9.37]
[1726626724911,9.37,131.42,131.38,9.37]
[1726626725116,13.1737,131.42,131.38,13.1745]
[1726626726023,3.8039,131.41,131.38,9.37]
[1726626726223,13.1739,131.41,131.38,9.37]
[1726626726722,9.37,131.41,131.38,13.1747]
[1726626726924,9.37,131.41,131.38,9.37]
[1726626727525,9.37,131.39,131.35,9.37]
[1726626727723,2.9454,131.43,131.34,9.37]
[1726626727724,9.37,131.38,131.34,9.37]
[1726626728222,9.37,131.38,131.35,3.8056]
[1726626728922,9.37,131.38,131.34,13.1758]
[1726626729423,13.1748,131.38,131.34,13.1758]
[1726626731122,3.8051,131.37,131.29,0.2869]
[1726626731324,13.1751,131.37,131.33,13.1761]
[1726626731828,3.8051,131.37,131.33,13.1761]
[1726626732219,12.2985,131.38,131.35,9.37]
[1726626732220,6.7335,131.38,131.35,9.37]
[1726626732728,2.9285,131.38,131.35,13.1754]
[1726626735221,2.9285,131.38,131.36,13.1751]
[1726626735723,15.22,131.46,131.37,9.37]
[1726626735724,9.37,131.42,131.37,9.37]
[1726626735916,9.37,131.43,131.39,9.37]
[1726626736321,9.37,131.44,131.4,9.37]
[1726626736523,3.8034,131.43,131.4,9.37]
[1726626740537,13.1734,131.43,131.4,9.37]
[1726626743035,3.8032,131.44,131.41,9.37]
[1726626745333,3.8033,131.43,131.4,13.1741]
[1726626746127,3.8033,131.43,131.39,3.8044]
[1726626746327,3.8033,131.43,131.39,13.1744]
[1726626746736,3.8033,131.43,131.4,9.37]
[1726626748127,13.1733,131.43,131.39,13.1744]
[1726626748733,3.8036,131.42,131.39,13.1744]
[1726626748932,3.8036,131.42,131.39,9.37]
[1726626749529,13.1734,131.43,131.39,13.1744]
[1726626750137,13.1734,131.43,131.39,9.37]
[1726626750138,3.8037,131.42,131.39,9.37]
[1726626750331,9.37,131.42,131.38,9.37]
[1726626750826,3.804,131.41,131.38,9.37]
[1726626752636,13.1737,131.42,131.38,13.1746]
[1726626754938,3.8037,131.42,131.39,9.37]
[1726626760337,9.37,131.42,131.37,9.37]
[1726626760745,9.34874166,131.42,131.37,9.37]
[1726626761042,9.34874166,131.42,131.37,13.175]
[1726626761043,3.804,131.41,131.37,13.175]
[1726626761344,9.37,131.44,131.39,9.37]
[1726626761738,13.6507,131.45,131.4,9.37]
[1726626762447,3.8035,131.43,131.4,9.37]
[1726626763042,3.8036,131.42,131.4,9.37]
[1726626765548,3.8034,131.43,131.41,9.37]
[1726626766650,2.8989,131.45,131.42,9.37]
[1726626767645,3.8029,131.45,131.43,9.37]
[1726626768145,15.22,131.48,131.44,9.37]
[1726626768348,15.22,131.48,131.46,9.37]
[1726626768552,19.022,131.48,131.46,9.37]
[1726626768754,15.22,131.48,131.47,9.37]
[1726626769152,19.022,131.48,131.44,3.8029]
[1726626769346,15.22,131.48,131.45,9.37]
[1726626769657,15.22,131.48,131.46,9.37]
[1726626771252,15.22,131.48,131.45,9.37]
[1726626772860,15.22,131.48,131.46,9.37]
[1726626774048,15.22,131.48,131.45,9.37]
[1726626774249,19.022,131.48,131.45,9.37]
[1726626774952,3.802,131.48,131.45,9.37]
[1726626775555,13.1717,131.49,131.45,9.37]
[1726626776245,3.802,131.48,131.45,9.37]
[1726626778857,3.8017,131.49,131.46,9.37]
[1726626780067,13.1717,131.49,131.46,9.37]
[1726626780366,9.37,131.47,131.42,9.37]
[1726626780861,9.37,131.44,131.35,4.1781093]
[1726626781063,9.37,131.44,131.39,9.37]
[1726626781861,3.8029,131.45,131.41,9.37]
[1726626782061,9.37,131.44,131.41,9.37]
[1726626782259,13.1732,131.44,131.41,9.37]
[1726626782571,13.1732,131.44,131.4,3.804]
[1726626782572,13.1732,131.44,131.4,9.37]
[1726626782963,1.4805,131.46,131.4,9.37]
[1726626783277,9.37,131.43,131.38,13.1746]
[1726626783472,9.37,131.43,131.39,9.37]
[1726626783473,13.1734,131.43,131.39,9.37]
[1726626784573,9.37,131.43,131.39,13.1744]
[1726626785069,7.56005569,131.44,131.39,13.1744]
[1726626785070,3.8031,131.44,131.4,9.37]
[1726626785269,13.1731,131.44,131.4,9.37]
[1726626786667,2.8448,131.45,131.41,9.37]
[1726626786866,5.2832,131.46,131.44,9.37]
[1726626787274,5.2832,131.46,131.43,9.37]
[1726626787874,3.8028,131.45,131.42,9.37]
[1726626793383,13.1732,131.44,131.4,9.37]
[1726626795284,13.1732,131.44,131.4,13.174]
[1726626795980,9.37,131.43,131.35,4.1781093]
[1726626796178,9.37,131.43,131.39,9.37]
[1726626796386,9.37,131.44,131.39,9.37]
[1726626796586,3.8034,131.43,131.4,3.8042]
[1726626797079,3.8034,131.43,131.39,9.37]
[1726626797784,3.8034,131.43,131.39,13.1743]
[1726626798178,3.8036,131.42,131.39,13.1743]
[1726626798578,9.37,131.43,131.39,13.1743]
[1726626798980,13.1735,131.43,131.39,13.1743]
[1726626800580,3.8036,131.42,131.39,13.1743]
[1726626806688,2.895,131.45,131.41,9.37]
[1726626806884,2.895,131.45,131.43,9.37]
[1726626806885,1.4698,131.45,131.43,9.37]
[1726626807281,1.4698,131.45,131.35,4.1781093]
[1726626807282,1.4698,131.45,131.42,13.1734]
[1726626807888,5.2726,131.45,131.42,9.37]
[1726626809997,1.4698,131.45,131.42,9.37]
[1726626810192,1.4698,131.45,131.42,13.1735]
[1726626810697,5.2725,131.45,131.42,9.37]
[1726626810895,1.4698,131.45,131.42,9.37]
[1726626812086,5.283,131.46,131.42,13.1735]
[1726626812892,5.283,131.46,131.43,9.37]
[1726626812893,1.4805,131.46,131.43,9.37]
[1726626814296,1.4805,131.46,131.43,13.1733]
[1726626816699,1.4805,131.46,131.43,9.37]
[1726626817000,10.8505,131.46,131.41,9.37]
[1726626817293,10.8505,131.46,131.41,13.1737]
[1726626817493,14.6531,131.46,131.41,13.1737]
[1726626817900,14.6531,131.46,131.42,3.8035]
[1726626830102,10.8505,131.46,131.44,3.803]
[1726626830307,10.8505,131.46,131.42,9.37]
[1726626830810,10.8505,131.46,131.43,3.8032]
[1726626831510,14.6529,131.46,131.43,3.8032]
[1726626831813,1.4805,131.46,131.43,3.8032]
[1726626840419,9.37,131.45,131.41,9.37]
[1726626840619,9.37,131.43,131.37,5.21476566]
[1726626840918,13.1735,131.43,131.39,3.8043]
[1726626841115,13.1735,131.43,131.38,9.37]
[1726626841623,13.1735,131.43,131.39,3.8043]
[1726626842514,3.8036,131.42,131.39,3.8043]
[1726626842819,9.37,131.43,131.39,3.8043]
[1726626843120,13.1735,131.43,131.39,3.8043]
[1726626844818,3.8036,131.42,131.39,3.8043]
[1726626845021,9.37,131.41,131.37,9.37]
[1726626845215,13.1742,131.4,131.35,13.2636093]
[1726626845515,13.1742,131.4,131.36,3.8052]
[1726626845838,13.1747,131.39,131.3,7.25539693]
[1726626846020,13.1747,131.39,131.35,3.8054]
[1726626846519,9.37,131.39,131.35,3.86552794]
[1726626846926,9.37,131.39,131.3,5.50497252]
[1726626846927,3.8044,131.4,131.37,13.175]
[1726626847116,13.174,131.41,131.37,9.37]
[1726626847621,13.174,131.41,131.38,3.8047]
[1726626847819,13.174,131.41,131.38,13.1747]
[1726626848818,9.37,131.41,131.38,13.1747]
[1726626851324,9.37,131.41,131.38,3.8047]
[1726626854025,5.32135319,131.44,131.39,3.8044]
[1726626854227,9.37,131.42,131.39,3.8044]
[1726626861432,13.1736,131.42,131.38,3.8046]
[1726626862243,1.4897,131.44,131.38,9.37]
[1726626862441,9.37,131.43,131.38,9.37]
[1726626863847,9.37,131.43,131.4,3.804]
[1726626864748,5.2929,131.44,131.4,3.804]
[1726626864951,14.6629,131.44,131.41,3.8038]
[1726626866152,10.8597,131.44,131.41,3.8038]
[1726626867051,14.6627,131.44,131.41,3.8038]
[1726626867255,14.6627,131.44,131.4,3.8041]
[1726626868453,9.37,131.41,131.37,9.37]
[1726626868659,9.37,131.41,131.37,13.09508093]
[1726626869553,13.1739,131.41,131.38,3.8045]
[1726626869753,13.1739,131.41,131.27,19.37225314]
[1726626869955,9.37,131.4,131.36,9.37]
[1726626870256,9.37,131.4,131.37,7.67880147]
[1726626870751,9.37,131.4,131.38,3.8047]
[1726626871855,13.1742,131.4,131.37,7.67880147]
[1726626872260,9.37,131.4,131.37,3.87390147]
[1726626872857,5.3567504,131.44,131.38,3.8045]
[1726626872858,3.804,131.41,131.38,3.8045]
[1726626873060,9.37,131.42,131.38,9.37]
[1726626873653,13.1738,131.42,131.39,3.8044]
[1726626874054,9.37,131.42,131.38,3.84860569]
[1726626875562,13.1738,131.42,131.39,3.8044]
[1726626876663,13.1738,131.42,131.39,13.1744]
[1726626878354,9.37,131.42,131.4,3.8041]
[1726626878569,1.4897,131.44,131.41,9.37]
[1726626878862,1.4805,131.46,131.43,9.37]
[1726626879058,5.2831,131.46,131.43,9.37]
[1726626879461,14.6531,131.46,131.42,9.37]
[1726626879662,14.6531,131.46,131.42,13.1734]
[1726626879858,14.6531,131.46,131.42,9.37]
[1726626880261,14.6531,131.46,131.41,3.77931402]
[1726626880566,14.6531,131.46,131.42,3.8035]
[1726626880954,9.37,131.43,131.41,3.8038]
[1726626881465,9.37,131.43,131.35,0.2846]
[1726626881466,13.1737,131.42,131.36,5.20866281]
[1726626881771,9.37,131.41,131.36,9.37]
[1726626882466,13.1739,131.41,131.38,3.8045]
[1726626882766,9.37,131.41,131.38,3.8045]
[1726626883261,9.37,131.41,131.39,3.8045]
[1726626884260,13.1733,131.43,131.4,3.8041]
[1726626884459,9.37,131.43,131.4,3.8041]
[1726626884669,9.37,131.42,131.4,3.8041]
[1726626884965,1.4737,131.44,131.39,3.8043]
[1726626885161,9.37,131.43,131.39,3.8043]
[1726626885577,1.4737,131.44,131.37,9.37]
[1726626885578,9.37,131.41,131.37,9.37]
[1726626885770,9.37,131.39,131.36,3.82956963]
[1726626886166,9.37,131.39,131.31,5.21350177]
[1726626886368,9.37,131.38,131.33,9.37]
[1726626886574,9.37,131.38,131.34,10.26128094]
[1726626886866,9.37,131.38,131.34,3.8057]
[1726626887272,13.1749,131.38,131.34,3.8057]
[1726626889869,2.968,131.4,131.35,3.8055]
[1726626890074,3.8045,131.39,131.35,9.37]
[1726626890779,3.8045,131.39,131.36,3.8053]
[1726626891177,16.1423,131.4,131.36,3.8053]
[1726626895678,12.338,131.4,131.37,3.8049]
[1726626898380,9.37,131.39,131.36,3.8052]
[1726626900185,9.37,131.38,131.35,3.8055]
[1726626900377,9.37,131.38,131.33,9.37]
[1726626900579,9.37,131.38,131.34,6.44901113]
[1726626900777,9.37,131.38,131.35,3.8054]
[1726626901377,9.37,131.36,131.34,3.8058]
[1726626902379,9.37,131.37,131.34,3.8058]
[1726626902573,9.37,131.37,131.35,3.8055]
[1726626906093,1.3988,131.39,131.36,13.25070001]
[1726626906286,1.3988,131.39,131.36,9.37]
[1726626906889,1.3988,131.39,131.36,13.15827494]
[1726626907089,1.3988,131.39,131.37,3.8049]
[1726626908786,2.968,131.4,131.37,3.8049]
[1726626910388,2.968,131.4,131.38,3.8047]
[1726626910590,2.968,131.4,131.38,9.37]
[1726626910791,1.4345,131.44,131.39,9.37]
[1726626910993,13.7489,131.44,131.39,9.37]
[1726626911480,13.7489,131.44,131.41,3.8039]
[1726626913093,17.552,131.44,131.41,3.8039]
[1726626914089,17.552,131.44,131.4,3.8041]
[1726626914294,9.37,131.42,131.4,3.8041]
[1726626914491,9.37,131.41,131.4,3.8041]
[1726626914787,9.37,131.41,131.39,3.8044]
[1726626914989,9.37,131.41,131.37,3.88904157]
[1726626915389,9.37,131.41,131.38,3.8046]
[1726626915987,9.37,131.41,131.39,3.8044]
[1726626916493,8.23710939,131.44,131.39,3.8044]
[1726626916494,3.8034,131.43,131.39,3.8044]
[1726626916689,9.37,131.41,131.39,3.8044]
[1726626919093,9.37,131.42,131.39,3.8044]
[1726626920801,9.37,131.41,131.36,9.37]
[1726626920998,9.37,131.37,131.25,7.6167]
[1726626921303,9.37,131.35,131.31,9.37]
[1726626921501,9.37,131.35,131.33,3.8062]
[1726626921704,9.37,131.35,131.31,9.37]
[1726626922302,9.37,131.37,131.32,15.81750845]
[1726626922502,9.37,131.37,131.32,9.37]
[1726626924101,9.37,131.37,131.33,6.447665]
[1726626924301,9.37,131.37,131.32,9.37]
[1726626924500,9.37,131.37,131.34,3.8057]
[1726626926401,9.37,131.37,131.35,3.8056]
[1726626935515,13.1749,131.38,131.35,3.8056]
[1726626935711,9.37,131.38,131.36,3.8053]
[1726626936303,23.37907733,131.44,131.36,9.37]
[1726626936610,9.37,131.4,131.36,9.37]
[1726626936811,9.37,131.4,131.37,3.805]
[1726626937012,9.37,131.39,131.37,3.805]
[1726626937412,9.37,131.38,131.36,3.8051]
[1726626938010,9.37,131.37,131.35,3.8055]
[1726626938215,9.37,131.36,131.31,9.37]
[1726626938515,9.37,131.36,131.32,6.44737729]
[1726626938712,13.1753,131.36,131.33,3.806]
[1726626939011,9.37,131.36,131.31,9.37]
[1726626939908,9.37,131.36,131.34,3.8059]
[1726626941716,9.37,131.37,131.33,9.37]
[1726626942114,10.7734,131.38,131.34,9.37]
[1726626942515,10.7734,131.38,131.36,3.8052]
[1726626944911,9.37,131.38,131.36,3.8052]
[1726626945113,9.37,131.38,131.37,3.805]
[1726626946508,2.7744,131.39,131.38,3.8048]
[1726626946706,9.37,131.42,131.37,9.37]
[1726626946911,9.37,131.42,131.38,9.37]
[1726626947110,13.7107,131.43,131.38,9.37]
[1726626947318,13.7107,131.43,131.41,3.8038]
[1726626947713,4.3407,131.43,131.41,3.8038]
[1726626947914,2.9076,131.43,131.41,3.8038]
[1726626948918,9.37,131.42,131.4,3.8041]
[1726626951915,9.37,131.42,131.37,9.37]
[1726626952121,9.37,131.41,131.36,13.20758999]
[1726626952317,9.37,131.41,131.36,9.37]
[1726626952518,9.37,131.41,131.38,3.8047]
[1726626953619,9.37,131.41,131.39,3.8045]
[1726626954417,9.37,131.41,131.38,3.8046]
[1726626954619,9.37,131.41,131.36,13.21526349]
[1726626955822,13.1742,131.4,131.37,3.8049]
[1726626956020,9.37,131.39,131.37,3.8049]
[1726626958424,9.37,131.4,131.36,9.37]
[1726626958626,9.37,131.42,131.37,9.37]
[1726626959225,9.37,131.42,131.37,13.17968646]
[1726626959426,13.1737,131.42,131.39,3.8043]
[1726626960723,9.37,131.42,131.4,3.8041]
[1726626961125,9.37,131.42,131.38,9.37]
[1726626961319,12.2776,131.43,131.39,9.37]
[1726626961723,12.2776,131.43,131.39,13.22973197]
[1726626962023,16.081,131.43,131.4,3.8041]
[1726626962329,9.37,131.41,131.4,3.8041]
[1726626966423,12.2776,131.43,131.38,9.37]
[1726626967825,12.2776,131.43,131.41,3.8037]
[1726626968021,9.37,131.42,131.37,3.82280948]
[1726626968228,9.37,131.42,131.37,9.37]
[1726626968526,9.37,131.41,131.4,3.8041]